fUSD/lending_fUSD_20260219
["ID","MTS","AMOUNT","RATE_DAILY","PERIOD"]
[406000975,1771519841420,-231.20088582,0.0002,5]
[406000976,1771519841430,-189.72,0.0002,2]
[406000977,1771519841439,-503.02243334,0.0002,2]
[406000978,1771519841449,-200.0,0.0002,2]
[406000979,1771519841459,-277.203629,0.0002,2]
[406000980,1771519841469,-200.0,0.0002,2]
[406000981,1771519841478,-2000.0,0.0002001,2]
[406000982,1771519841488,-2000.0,0.0002002,2]
[406000983,1771519841498,-2145.472813,0.0002003,2]
[406000984,1771519841508,-167.89,0.00020046,2]
[406000985,1771519841518,-500.0,0.00020052,2]
[406000986,1771519841529,-200.0,0.000202,2]
[406000987,1771519841539,-350.0,0.00020274,2]
[406000988,1771519841550,-246.12796453,0.00020301,17]
[406000989,1771519841560,-1000.0,0.00020398,2]
[406000990,1771519841570,-155.3,0.00020548,2]
[406000991,1771519841579,-150.0,0.00020733,2]
[406000992,1771519841589,-406.56998986,0.00020822,2]
[406000993,1771519841599,-171.15,0.00020933,2]
[406000994,1771519841608,-796.22,0.00020937,2]
[406000995,1771519841619,-500.0,0.00020937,2]
[406000996,1771519841628,-550.45,0.00020937,2]
[406000997,1771519841638,-1461.53,0.00020937,2]
[406000998,1771519841648,-872.66,0.00020937,2]
[406000999,1771519841657,-971.38,0.00020937,2]
[406001000,1771519841667,-171.15,0.00020949,2]
[406001001,1771519841676,-171.14,0.0002096,2]
[406001002,1771519841685,-171.15,0.00020971,2]
[406001003,1771519841695,-1360.75,0.00020999,2]
[406001004,1771519841704,-503.03,0.00020999,2]
[406001005,1771519841714,-771.29,0.00020999,2]
[406001006,1771519841724,-2000.0,0.00021,2]
[406001007,1771519841735,-1197.14163776,0.00021,2]
[406001008,1771519841744,-197.59818502,0.00021,2]
[406001009,1771519841755,-110338.5351161,0.00021,2]
[406001010,1771519841766,-5000.0,0.00021,2]
[406001011,1771519841777,-400.0,0.00021,2]
[406001012,1771519841787,-151.0,0.00021,2]
[406001013,1771519841797,-151.0,0.00021,2]
[406001014,1771519841807,-151.0,0.00021,2]
[406001015,1771519841817,-166.638939,0.00021,2]
[406001016,1771519841826,-151.0,0.00021,2]
[406001017,1771519841836,-317.987551,0.00021,2]
[406001018,1771519841846,-317.987551,0.00021,2]
[406001019,1771519841856,-317.987551,0.00021,2]
[406001020,1771519841867,-317.987551,0.00021,2]
[406001021,1771519841879,-669.736706,0.00021,2]
[406001022,1771519841889,-669.736706,0.00021,2]
[406001023,1771519841899,-669.736706,0.00021,2]
[406001024,1771519841909,-669.736706,0.00021,2]
[406001025,1771519841919,-243.496731,0.00021,2]
[406001026,1771519841928,-243.496731,0.00021,2]
[406001027,1771519841938,-243.496731,0.00021,2]
[406001028,1771519841949,-243.496731,0.00021,2]
[406001029,1771519841958,-151.0,0.00021,2]
[406001030,1771519841968,-151.0,0.00021,2]
[406001031,1771519841977,-500.0,0.0002112,2]
[406001032,1771519841988,-293.32,0.00021324,2]
[406001033,1771519841998,-6097.13800209,0.00021422,2]
[406001034,1771519842009,-222.9201421,0.000215,2]
[406001035,1771519842018,-328.83,0.00021526,30]
[406001036,1771519842031,-179.4,0.0002154,2]
[406001037,1771519842041,-155.0,0.00021598,2]
[406001038,1771519842051,-150.0,0.00021733,2]
[406001039,1771519842062,-516.0,0.00021846,6]
[406001040,1771519842074,-167.89,0.00021868,2]
[406001041,1771519842085,-2000.0,0.00021917,2]
[406001042,1771519842096,-3044.26,0.00021918,2]
[406001043,1771519842106,-5000.0,0.00021918,2]
[406001044,1771519842118,-151.0,0.00021918,2]
[406001045,1771519842128,-151.0,0.00021918,2]
[406001046,1771519842138,-151.0,0.00021918,2]
[406001047,1771519842147,-151.0,0.00021918,2]
[406001048,1771519842156,-151.0,0.00021918,2]
[406001049,1771519842165,-151.0,0.00021918,2]
[406001050,1771519842175,-151.0,0.00021918,2]
[406001051,1771519842184,-151.0,0.00021918,2]
[406001052,1771519842193,-150.0,0.00021973,2]
[406001053,1771519842203,-796.22,0.00021999,2]
[406001054,1771519842213,-796.22,0.00021999,2]
[406001055,1771519842222,-796.22,0.00021999,2]
[406001056,1771519842232,-796.22,0.00021999,2]
[406001057,1771519842243,-796.45985551,0.00021999,2]
[406001058,1771519842251,-500.0,0.00021999,2]
[406001059,1771519842260,-500.0,0.00021999,2]
[406001060,1771519842269,-500.0,0.00021999,2]
[406001061,1771519842278,-500.0,0.00021999,2]
[406001062,1771519842287,-196.90981151,0.00021999,2]
[406001063,1771519842296,-550.45,0.00021999,2]
[406001064,1771519842305,-550.45,0.00021999,2]
[406001065,1771519842314,-550.45,0.00021999,2]
[406001066,1771519842323,-550.45,0.00021999,2]
[406001067,1771519842331,-550.45166845,0.00021999,2]
[406001068,1771519842341,-1461.53,0.00021999,2]
[406001069,1771519842350,-1461.53,0.00021999,2]
[406001070,1771519842359,-1461.53,0.00021999,2]
[406001071,1771519842368,-1461.53,0.00021999,2]
[406001072,1771519842378,-1461.58291859,0.00021999,2]
[406001073,1771519842387,-872.66,0.00021999,2]
[406001074,1771519842396,-872.66,0.00021999,2]
[406001075,1771519842406,-872.66,0.00021999,2]
[406001076,1771519842415,-872.66,0.00021999,2]
[406001077,1771519842424,-872.89213972,0.00021999,2]
[406001078,1771519842434,-1360.75,0.00021999,2]
[406001079,1771519842443,-1360.75,0.00021999,2]
[406001080,1771519842452,-1360.75,0.00021999,2]
[406001081,1771519842461,-1360.75,0.00021999,2]
[406001082,1771519842470,-1360.76754888,0.00021999,2]
[406001083,1771519842479,-971.38,0.00021999,2]
[406001084,1771519842487,-971.38,0.00021999,2]
[406001085,1771519842496,-971.38,0.00021999,2]
[406001086,1771519842506,-971.38,0.00021999,2]
[406001087,1771519842514,-971.39885832,0.00021999,2]
[406001088,1771519842524,-503.03,0.00021999,2]
[406001089,1771519842533,-771.29,0.00021999,2]
[406001090,1771519842542,-2005.96346869,0.00022,2]
[406001091,1771519842551,-132389.39879957,0.00022,2]
[406001092,1771519842560,-163.53,0.00022,2]
[406001094,1771519842569,-160.0,0.00022,2]
[406001096,1771519842578,-5000.0,0.00022,2]
[406001098,1771519842587,-163.98,0.00022,2]
[406001100,1771519842597,-5416.0,0.00022,120]
[406001101,1771519842606,-179.03,0.00022,7]
[406001102,1771519842616,-221.52,0.00022,2]
[406001103,1771519842625,-151.0,0.00022,2]
[406001104,1771519842634,-207.776921,0.00022,3]
[406001105,1771519842643,-151.0,0.00022,2]
[406001106,1771519842652,-175.647808,0.00022,2]
[406001107,1771519842661,-176.617084,0.00022,2]
[406001108,1771519842671,-317.987551,0.00022,2]
[406001109,1771519842679,-317.987551,0.00022,2]
[406001110,1771519842689,-317.987551,0.00022,2]
[406001111,1771519842698,-317.987551,0.00022,2]
[406001112,1771519842707,-669.736706,0.00022,2]
[406001113,1771519842716,-669.736706,0.00022,2]
[406001114,1771519842726,-669.736706,0.00022,2]
[406001115,1771519842736,-669.736706,0.00022,2]
[406001116,1771519842746,-243.496731,0.00022,2]
[406001117,1771519842756,-243.496731,0.00022,2]
[406001118,1771519842766,-243.496731,0.00022,2]
[406001119,1771519842776,-243.496731,0.00022,2]
[406001120,1771519842785,-151.0,0.00022,2]
[406001121,1771519842795,-151.0,0.00022,2]
[406001122,1771519842805,-151.0,0.00022,2]
[406001123,1771519842815,-259.859656,0.00022,2]
[406001124,1771519842824,-496.30001043,0.000221,2]
[406001125,1771519842833,-241.1603211,0.0002211,2]
[406001126,1771519842842,-1000.0,0.00022253,2]
[406001127,1771519842852,-168.47,0.00022425,2]
[406001128,1771519842861,-250.0,0.00022521,2]
[406001129,1771519842873,-775.47832561,0.00022577,2]
[406001130,1771519842882,-601.15837775,0.0002266,9]
[406001131,1771519842892,-525.22882933,0.0002271,2]
[406001132,1771519842902,-150.0,0.00022733,2]
[406001133,1771519842913,-855.0,0.0002288,3]
[406001134,1771519842923,-1338.0,0.00022963,2]
[406001135,1771519842932,-413.0,0.00022963,2]
[406001136,1771519842942,-503.03,0.00022999,2]
[406001137,1771519842952,-771.29,0.00022999,2]
[406001138,1771519842961,-304775.27242658,0.00023,2]
[406001139,1771519842971,-160.0,0.00023,3]
[406001140,1771519842980,-5000.0,0.00023,2]
[406001141,1771519842990,-456.42492046,0.00023,120]
[406001142,1771519843000,-222.90120808,0.00023,3]
[406001143,1771519843009,-450.0,0.00023,2]
[406001144,1771519843019,-224.237696,0.00023,2]
[406001145,1771519843030,-151.0,0.00023,2]
[406001146,1771519843040,-317.987551,0.00023,2]
[406001147,1771519843049,-317.987551,0.00023,2]
[406001148,1771519843058,-317.987551,0.00023,2]
[406001149,1771519843069,-317.987556,0.00023,2]
[406001150,1771519843078,-669.736706,0.00023,2]
[406001151,1771519843088,-669.736706,0.00023,2]
[406001152,1771519843097,-669.736706,0.00023,2]
[406001153,1771519843108,-669.736702,0.00023,2]
[406001154,1771519843119,-243.496731,0.00023,2]
[406001155,1771519843128,-243.496731,0.00023,2]
[406001156,1771519843138,-243.496731,0.00023,2]
[406001157,1771519843147,-243.496727,0.00023,2]
[406001158,1771519843156,-151.0,0.00023,2]
[406001159,1771519843165,-151.0,0.00023,2]
[406001160,1771519843175,-151.0,0.00023,2]
[406001161,1771519843184,-392.89837965,0.00023068,2]
[406001162,1771519843194,-646.94566164,0.000232,2]
[406001163,1771519843203,-200.0,0.000235,2]
[406001164,1771519843212,-150.0,0.00023733,2]
[406001165,1771519843222,-179.03,0.000238,7]
[406001166,1771519843230,-328.83,0.00023875,30]
[406001167,1771519843242,-1152.57417279,0.00023895,11]
[406001168,1771519843261,-160.39897394,0.00023931,2]
[406001169,1771519843271,-961.0,0.0002398,10]
[406001170,1771519843280,-1025.51743719,0.00024,2]
[406001171,1771519843289,-1240.05651083,0.00024,2]
[406001172,1771519843299,-5000.0,0.00024,2]
[406001173,1771519843308,-179.4,0.00024092,2]
[406001174,1771519843317,-6221.522996,0.00024123,30]
[406001175,1771519843326,-423.6478862,0.0002421,2]
[406001176,1771519843335,-988.562871,0.00024345,30]
[406001177,1771519843344,-233.95598063,0.0002463,2]
[406001179,1771519843353,-168.30479281,0.0002465,2]
[406001180,1771519843362,-2000.0,0.00024657,12]
[406001182,1771519843373,-1229.28,0.00024658,2]
[406001184,1771519843382,-1000.0,0.00024658,2]
[406001186,1771519843391,-152.499756,0.00024658,2]
[406001188,1771519843400,-2603.94358641,0.0002469,2]
[406001191,1771519843409,-150.0,0.00024733,2]
[406001193,1771519843418,-3297.17,0.00024861,2]
[406001195,1771519843428,-6097.13800209,0.00024944,2]
[406001197,1771519843438,-1115.90762042,0.00025,2]
[406001198,1771519843448,-207.88192601,0.00025,2]
[406001199,1771519843457,-1788.05071752,0.00025,2]
[406001200,1771519843466,-540.0,0.00025,2]
[406001201,1771519843475,-611.99689373,0.00025,2]
[406001202,1771519843484,-3049.92598844,0.00025,2]
[406001204,1771519843493,-167.62191697,0.00025,2]
[406001206,1771519843505,-5000.0,0.00025,2]
[406001208,1771519843525,-2578.37863581,0.00025,30]
[406001209,1771519843536,-150.0,0.00025,2]
[406001210,1771519843545,-500.0,0.00025,2]
[406001211,1771519843554,-1653.86125932,0.00025129,13]
[406001212,1771519843563,-155.0,0.00025197,2]
[406001213,1771519843573,-804.17102365,0.00025316,2]
[406001214,1771519843582,-155.0,0.00025359,3]
[406001215,1771519843591,-168.47,0.00025708,2]
[406001216,1771519843600,-150.0,0.00025733,2]
[406001217,1771519843610,-221.52,0.00025761,7]
[406001218,1771519843621,-293.32,0.00025822,2]
[406001219,1771519843629,-661.52,0.00025963,2]
[406001220,1771519843638,-284.459,0.00025963,2]
[406001221,1771519843648,-602.0394286,0.0002599,2]
[406001222,1771519843656,-216.89671088,0.00026,2]
[406001223,1771519843665,-5000.0,0.00026,2]
[406001224,1771519843674,-210.8,0.00026,2]
[406001225,1771519843684,-328.83,0.00026223,30]
[406001226,1771519843695,-178.11289766,0.000263,2]
[406001227,1771519843704,-1703.98996782,0.00026364,14]
[406001228,1771519843714,-27530.44683494,0.000264,2]
[406001229,1771519843723,-168.46,0.00026416,2]
[406001230,1771519843733,-179.4,0.00026643,2]
[406001231,1771519843743,-516.0,0.00026692,10]
[406001232,1771519843753,-150.0,0.00026733,2]
[406001233,1771519843762,-500.0,0.00026762,2]
[406001234,1771519843772,-250.0,0.00027,2]
[406001235,1771519843782,-1036.65239462,0.00027,2]
[406001236,1771519843791,-530.0,0.00027,2]
[406001237,1771519843801,-5000.0,0.00027,2]
[406001238,1771519843811,-2000.0,0.00027,2]
[406001239,1771519843822,-550.0,0.00027,2]
[406001240,1771519843831,-2486.542864,0.0002701,2]
[406001241,1771519843841,-3695.95,0.00027123,2]
[406001242,1771519843852,-503.03,0.00027213,2]
[406001243,1771519843861,-771.29,0.00027213,2]
[406001244,1771519843871,-150.0,0.00027369,2]
[406001245,1771519843880,-311.9413075,0.0002737,30]
[406001246,1771519843889,-4119.86011238,0.0002739,2]
[406001247,1771519843899,-8139.83522515,0.0002739,2]
[406001248,1771519843910,-1000.0,0.00027397,30]
[406001249,1771519843920,-1000.0,0.00027397,30]
[406001250,1771519843930,-1000.0,0.00027397,30]
[406001251,1771519843939,-444.56062918,0.00027397,30]
[406001252,1771519843949,-390.00955058,0.00027397,7]
[406001253,1771519843959,-150.0,0.00027397,7]
[406001254,1771519843968,-520.65,0.00027397,2]
[406001255,1771519843977,-10073.31589327,0.00027397,120]
[406001256,1771519843986,-1000.0,0.00027397,20]
[406001257,1771519843995,-1229.28,0.00027397,2]
[406001258,1771519844006,-300.0,0.00027397,2]
[406001259,1771519844015,-232.67043,0.00027397,2]
[406001260,1771519844029,-232.67043,0.00027397,2]
[406001261,1771519844040,-232.67043,0.00027397,2]
[406001262,1771519844050,-232.67043,0.00027397,2]
[406001263,1771519844059,-232.67043,0.00027397,2]
[406001264,1771519844070,-232.67043,0.00027397,2]
[406001265,1771519844080,-232.67043,0.00027397,2]
[406001266,1771519844089,-232.67043,0.00027397,2]
[406001267,1771519844100,-232.67043,0.00027397,2]
[406001268,1771519844109,-232.67043,0.00027397,2]
[406001269,1771519844119,-232.67043,0.00027397,2]
[406001270,1771519844129,-232.67043,0.00027397,2]
[406001271,1771519844138,-232.67043,0.00027397,2]
[406001272,1771519844148,-232.67043,0.00027397,2]
[406001273,1771519844283,-232.67043,0.00027397,2]
[406001274,1771519844293,-232.67043,0.00027397,2]
[406001275,1771519844303,-232.67043,0.00027397,2]
[406001276,1771519844313,-232.67043,0.00027397,2]
[406001277,1771519844322,-232.67043,0.00027397,2]
[406001278,1771519844333,-232.670438,0.00027397,2]
[406001279,1771519844344,-500.0,0.00027397,120]
[406001280,1771519844354,-201.72343116,0.000275,2]
[406001281,1771519844365,-551.06253754,0.000275,2]
[406001282,1771519844373,-2004.76221966,0.00027599,14]
[406001283,1771519844382,-150.0,0.00027733,2]
[406001284,1771519844392,-969.98832939,0.0002789,2]
[406001285,1771519844400,-160.0,0.00028,2]
[406001286,1771519844410,-5000.0,0.00028,2]
[406001287,1771519844420,-50986.65398442,0.00028,2]
[406001288,1771519844430,-159.21514863,0.00028,5]
[406001289,1771519844440,-833.92535153,0.00028055,2]
[406001290,1771519844451,-1000.0,0.00028131,5]
[406001292,1771519844460,-6097.13800209,0.00028466,2]
[406001293,1771519844471,-328.83,0.00028571,30]
[406001294,1771519844484,-473.42480723,0.00028708,3]
[406001295,1771519844494,-150.0,0.00028733,2]
[406001296,1771519844503,-495.50171951,0.00028767,2]
[406001297,1771519844512,-2255.40576286,0.00028834,14]
[406001298,1771519844522,-503.640483,0.00029,2]
[406001299,1771519844532,-5000.0,0.00029,2]
[406001300,1771519844541,-1741.73583762,0.00029,10]
[406001301,1771519844552,-500.0,0.00029,2]
[406001302,1771519844562,-2000.0,0.00029,2]
[406001303,1771519844571,-160.39897394,0.00029066,2]
[406001304,1771519844582,-179.4,0.00029194,2]
[406001305,1771519844592,-1500.0,0.00029501,5]
[406001306,1771519844603,-221.52,0.00029522,30]
[406001307,1771519844612,-150.0,0.00029733,2]
[406001308,1771519844622,-503.03,0.00029899,8]
[406001309,1771519844631,-771.29,0.00029899,8]
[406001310,1771519844641,-79133.2129822,0.000299,2]
[406001311,1771519844651,-237.99273334,0.0002999,2]
[406001312,1771519844661,-1000.0,0.00029997,7]
[406001313,1771519844670,-8687.81993331,0.0003,3]
[406001314,1771519844680,-320.34111288,0.0003,2]
[406001315,1771519844689,-1823.61132352,0.0003,2]
[406001316,1771519844698,-163.56571143,0.0003,2]
[406001317,1771519844708,-5000.0,0.0003,2]
[406001318,1771519844717,-19931.65310872,0.0003,2]
[406001319,1771519844727,-290.69586477,0.0003,30]
[406001320,1771519844736,-4111.79077148,0.0003,30]
[406001321,1771519844745,-2001.0627912,0.0003,120]
[406001322,1771519844754,-2000.0,0.0003,120]
[406001323,1771519844763,-2000.0,0.0003,120]
[406001324,1771519844772,-12038.95997521,0.0003,5]
[406001325,1771519844781,-150.0,0.0003,2]
[406001326,1771519844790,-2355.66318014,0.00030069,14]
[406001327,1771519844799,-1077.25556631,0.0003013,2]
[406001328,1771519844808,-636.17700517,0.0003013,2]
[406001329,1771519844818,-202.3837586,0.0003013,2]
[406001330,1771519844827,-13897.362217,0.0003013,2]
[406001331,1771519844836,-7756.97859773,0.0003013,2]
[406001332,1771519844845,-1229.28,0.00030137,2]
[406001333,1771519844854,-1000.0,0.00030137,2]
[406001334,1771519844862,-15587.20986743,0.000302,2]
[406001335,1771519844872,-400.24,0.000302,30]
[406001336,1771519844881,-1088.69539843,0.00030245,3]
[406001337,1771519844890,-164.0,0.00030265,3]
[406001338,1771519844899,-1000.0,0.00030685,2]
[406001339,1771519844908,-150.0,0.00030733,2]
[406001340,1771519844918,-582.91749954,0.00030794,2]
[406001341,1771519844927,-179.03,0.000308,7]
[406001342,1771519844936,-1614.20093449,0.0003084,2]
[406001343,1771519844945,-1008.00301164,0.00030871,5]
[406001344,1771519844955,-503.03,0.00030899,8]
[406001345,1771519844964,-771.29,0.00030899,8]
[406001346,1771519844973,-328.83,0.0003092,30]
[406001347,1771519844983,-79274.67337535,0.0003095,2]
[406001348,1771519844992,-51731.20678431,0.00031,2]
[406001349,1771519845001,-2228.24767595,0.00031,30]
[406001350,1771519845011,-272.73034255,0.00031095,2]
[406001351,1771519845022,-909.82812058,0.00031188,2]
[406001352,1771519845035,-14113.46124215,0.00031215,14]
[406001353,1771519845044,-1000.0,0.00031233,2]
[406001354,1771519845054,-2706.56414061,0.00031303,14]
[406001355,1771519845064,-197.99835248,0.000315,2]
[406001356,1771519845073,-150.0,0.000315,2]
[406001357,1771519845082,-516.0,0.00031538,15]
[406001358,1771519845091,-150.0,0.00031733,2]
[406001359,1771519845102,-179.4,0.00031745,2]
[406001360,1771519845112,-1000.0,0.00031781,2]
[406001361,1771519845123,-503.03,0.00031849,8]
[406001362,1771519845132,-771.29,0.00031849,8]
[406001363,1771519845141,-95667.0,0.0003185,20]
[406001364,1771519845151,-400.24,0.000319,30]
[406001365,1771519845160,-6097.13800209,0.00031988,2]
[406001366,1771519845170,-897.18175167,0.000323,2]
[406001367,1771519845179,-20024.64416476,0.000323,2]
[406001368,1771519845188,-1000.0,0.00032329,2]
[406001369,1771519845197,-155.0,0.00032396,2]
[406001370,1771519845206,-2806.82155789,0.00032538,14]
[406001371,1771519845216,-173.61665026,0.00032699,2]
[406001372,1771519845226,-2000.0,0.000327,2]
[406001373,1771519845235,-155.0,0.00032718,3]
[406001374,1771519845245,-150.0,0.00032733,2]
[406001375,1771519845254,-4846.80941573,0.000328,2]
[406001376,1771519845263,-345.9,0.00032877,2]
[406001377,1771519845273,-1229.28,0.00032877,2]
[406001378,1771519845282,-191.639779,0.00032877,31]
[406001379,1771519845292,-151.0,0.00032877,31]
[406001380,1771519845303,-151.0,0.00032877,31]
[406001381,1771519845312,-151.0,0.00032877,31]
[406001382,1771519845323,-176.661156,0.00032877,31]
[406001383,1771519845333,-500.0,0.00032877,2]
[406001384,1771519845342,-500.0,0.00032877,2]
[406001385,1771519845351,-500.0,0.00032877,2]
[406001386,1771519845360,-500.0,0.00032877,2]
[406001387,1771519845370,-500.0,0.00032877,2]
[406001388,1771519845379,-500.0,0.00032877,2]
[406001389,1771519845389,-370.81663552,0.00032877,2]
[406001390,1771519845398,-1000.0,0.00032877,2]
[406001391,1771519845408,-503.03,0.00032899,8]
[406001392,1771519845418,-503.03,0.00032899,8]
[406001393,1771519845428,-503.03,0.00032899,8]
[406001394,1771519845437,-503.03,0.00032899,8]
[406001395,1771519845447,-503.22195647,0.00032899,8]
[406001397,1771519845456,-771.29,0.00032899,8]
[406001399,1771519845466,-771.29,0.00032899,8]
[406001400,1771519845475,-771.29,0.00032899,8]
[406001401,1771519845484,-771.29,0.00032899,8]
[406001402,1771519845494,-771.3767714,0.00032899,8]
[406001403,1771519845503,-634.88,0.000329,2]
[406001405,1771519845513,-95667.0,0.000329,20]
[406001407,1771519845522,-154.11257461,0.00033,2]
[406001408,1771519845531,-16222.39556908,0.00033,13]
[406001409,1771519845540,-51474.07570596,0.00033,2]
[406001410,1771519845548,-26469.06209749,0.00033,2]
[406001411,1771519845558,-33419.79808392,0.00033,13]
[406001412,1771519845567,-12884.66175955,0.00033,13]
[406001413,1771519845576,-400.24,0.00033,30]
[406001414,1771519845586,-560.817858,0.00033,14]
[406001415,1771519845595,-171.0,0.00033,2]
[406001416,1771519845605,-709.29363093,0.00033,2]
[406001417,1771519845615,-159.12,0.000331,14]
[406001418,1771519845625,-564.51,0.000331,14]
[406001419,1771519845634,-328.83,0.00033268,30]
[406001420,1771519845643,-221.52,0.00033283,30]
[406001421,1771519845652,-1000.0,0.00033425,2]
[406001422,1771519845662,-1215.6692713,0.000335,2]
[406001423,1771519845671,-150.0,0.00033733,2]
[406001424,1771519845680,-3057.46510109,0.00033773,14]
[406001425,1771519845689,-95667.0,0.0003395,20]
[406001426,1771519845698,-1000.0,0.00033973,2]
[406001427,1771519845708,-14052.23500879,0.00034,5]
[406001428,1771519845717,-10000.0,0.00034,2]
[406001429,1771519845726,-340.0,0.00034,120]
[406001430,1771519845736,-160.39897394,0.00034201,2]
[406001431,1771519845745,-179.4,0.00034296,5]
[406001432,1771519845754,-150.1,0.00034308,2]
[406001433,1771519845763,-400.24,0.000344,30]
[406001434,1771519845773,-1737.38262995,0.0003449,2]
[406001435,1771519845782,-1000.0,0.0003449,2]
[406001436,1771519845791,-1000.0,0.0003449,2]
[406001437,1771519845800,-1000.0,0.0003449,2]
[406001438,1771519845810,-1000.0,0.0003449,2]
[406001439,1771519845819,-1000.0,0.00034521,2]
[406001440,1771519845829,-2858.0,0.00034534,11]
[406001441,1771519845839,-1000.0,0.00034576,2]
[406001442,1771519845848,-1000.0,0.00034576,2]
[406001443,1771519845857,-1000.0,0.00034576,2]
[406001444,1771519845866,-1000.0,0.00034576,2]
[406001445,1771519845875,-1000.0,0.00034576,2]
[406001446,1771519845884,-1000.0,0.0003465,2]
[406001447,1771519845893,-150.0,0.00034733,2]
[406001448,1771519845902,-1500.0,0.00034795,2]
[406001449,1771519845911,-418.61125189,0.0003488,120]
[406001450,1771519845922,-180466.85761895,0.000349,4]
[406001451,1771519845931,-218200.89911386,0.00035,4]
[406001452,1771519845942,-1924.06492081,0.00035,2]
[406001453,1771519845953,-802.57957582,0.00035,2]
[406001454,1771519845962,-1806.45808425,0.00035,30]
[406001455,1771519845972,-2149.67304583,0.00035,7]
[406001456,1771519845982,-3560.0,0.00035,120]
[406001457,1771519845991,-279.02809856,0.00035,2]
[406001458,1771519846000,-95667.0,0.00035,20]
[406001459,1771519846012,-150.0,0.00035,2]
[406001460,1771519846022,-3358.23735293,0.00035008,14]
[406001461,1771519846036,-150.0,0.00035069,2]
[406001462,1771519846046,-1000.0,0.00035069,2]
[406001463,1771519846055,-634.88,0.000351,2]
[406001464,1771519846065,-300.192044,0.00035217,33]
[406001465,1771519846077,-400.24,0.000353,30]
[406001466,1771519846086,-6097.13800209,0.0003551,2]
[406001467,1771519846095,-373.89269147,0.00035589,120]
[406001468,1771519846106,-233.95598063,0.00035589,120]
[406001469,1771519846117,-168399.96441818,0.0003561,2]
[406001470,1771519846126,-4446.81937576,0.0003561,2]
[406001471,1771519846135,-5000.0,0.0003561,2]
[406001472,1771519846145,-320.79076559,0.00035616,7]
[406001473,1771519846155,-328.83,0.00035616,30]
[406001474,1771519846164,-1229.28,0.00035616,2]
[406001475,1771519846174,-1000.0,0.00035617,2]
[406001476,1771519846183,-150.0,0.00035733,2]
[406001477,1771519846192,-2337.4724605,0.00036,2]
[406001478,1771519846202,-235397.34643634,0.00036,2]
[406001479,1771519846211,-300.0,0.00036,120]
[406001480,1771519846220,-95667.0,0.0003605,20]
[406001481,1771519846230,-300.08919149,0.00036165,2]
[406001482,1771519846239,-1000.0,0.00036165,2]
[406001483,1771519846250,-400.24,0.000362,30]
[406001484,1771519846259,-3408.36606157,0.00036243,14]
[406001485,1771519846268,-152.0,0.00036367,3]
[406001486,1771519846278,-516.0,0.00036385,19]
[406001487,1771519846287,-2000.0,0.000364,2]
[406001488,1771519846296,-2506.44936381,0.00036511,2]
[406001490,1771519846305,-3297.17,0.00036642,2]
[406001491,1771519846315,-1000.0,0.00036713,2]
[406001492,1771519846324,-150.0,0.00036733,2]
[406001493,1771519846334,-1616.18373573,0.000368,2]
[406001494,1771519846345,-1961.96863128,0.000368,2]
[406001495,1771519846356,-179.4,0.00036847,7]
[406001496,1771519846365,-159.4845,0.00036888,7]
[406001497,1771519846374,-211.0,0.0003689,30]